bitfinex-derivatives/quotes_ETHF0:USTF0_20250316
["timestamp","ask_amount","ask_price","bid_price","bid_amount"]
[1742083201768,1.3115,1938.4,1938.1,3.2078]
[1742083204370,1.03183,1938.3,1938.1,3.2078]
[1742083205265,2.34329,1938.4,1938.1,3.2078]
[1742083205461,1.3115,1938.4,1938.2,1.03186]
[1742083205656,1.86102832,1938.6,1938.3,4.23958]
[1742083205859,1.86102832,1938.6,1938.1,3.267]
[1742083205860,0.00773674,1938.6,1938.5,4.2395]
[1742083206063,0.00773674,1938.6,1938.5,3.2078]
[1742083206265,0.00773674,1938.6,1938.5,3.8936]
[1742083206469,1.03938674,1938.6,1938.5,3.2078]
[1742083207168,0.00773674,1938.6,1938.5,3.2078]
[1742083208065,0.00773674,1938.6,1938.5,4.2395]
[1742083211077,1.03938674,1938.6,1938.5,3.2078]
[1742083211463,0.00773674,1938.6,1938.5,3.2078]
[1742083211670,1.03938674,1938.6,1938.5,3.2078]
[1742083212268,1.03938674,1938.6,1938.5,4.6041]
[1742083212467,1.03938674,1938.6,1938.5,5.6358]
[1742083212663,1.03938674,1938.6,1938.5,3.2078]
[1742083213070,1.03938674,1938.6,1938.5,4.2395]
[1742083213577,0.00773674,1938.6,1938.5,4.2395]
[1742083214276,0.00773674,1938.6,1938.5,5.6631]
[1742083215075,1.03938674,1938.6,1938.5,4.2395]
[1742083215275,1.70168674,1938.6,1938.5,3.2078]
[1742083216481,1.70168674,1938.6,1938.5,4.5479]
[1742083217381,1.70168674,1938.6,1938.5,5.5796]
[1742083217884,1.70168674,1938.6,1938.5,4.5479]
[1742083219080,1.70168674,1938.6,1938.5,5.5796]
[1742083219382,1.70168674,1938.6,1938.5,4.5479]
[1742083220884,1.70168674,1938.6,1938.5,5.5796]
[1742083221686,1.70168674,1938.6,1938.5,4.5479]
[1742083222387,1.70168674,1938.6,1938.5,5.5796]
[1742083223788,0.67003674,1938.6,1938.5,5.5796]
[1742083224286,0.00773674,1938.6,1938.5,5.5796]
[1742083228392,0.00773674,1938.6,1938.5,2.3718]
[1742083228587,0.00773674,1938.6,1938.5,5.5796]
[1742083232393,1.43623674,1938.6,1938.5,5.5796]
[1742083232794,2.46788674,1938.6,1938.5,3.2078]
[1742083232983,2.46788674,1938.6,1938.3,3.2078]
[1742083233187,2.46788674,1938.6,1938.4,1.03172]
[1742083233188,1.3674,1938.5,1938.4,1.03172]
[1742083233390,2.3991,1938.5,1938.4,1.03172]
[1742083234287,1.3674,1938.5,1938.4,1.03172]
[1742083234895,2.3991,1938.5,1938.4,1.03172]
[1742083235387,1.03179,1938.4,1938.1,3.2078]
[1742083235587,0.6931,1938.3,1938.2,1.03186]
[1742083236094,2.1337,1938.3,1938.2,1.03186]
[1742083236296,3.16551,1938.3,1938.2,1.03186]
[1742083239996,2.1337,1938.3,1938.2,1.03186]
[1742083243804,3.16551,1938.3,1938.2,1.03186]
[1742083244704,2.1337,1938.3,1938.0,1.03194]
[1742083244896,1.03191,1938.1,1938.0,1.03194]
[1742083245204,1.03197,1938.0,1937.9,4.23978]
[1742083245503,3.07927,1938.0,1937.9,4.23978]
[1742083246295,3.07927,1938.0,1937.9,3.2078]
[1742083246905,3.07927,1938.0,1937.9,4.23982]
[1742083247299,3.07927,1938.0,1937.9,3.2078]
[1742083247601,3.07927,1938.0,1937.9,4.23982]
[1742083248406,3.07927,1938.0,1937.9,1.03202]
[1742083249504,1.03202,1937.9,1937.8,1.03207]
[1742083249698,2.45532,1937.9,1937.8,1.03207]
[1742083250699,2.45532,1937.9,1937.7,4.25879]
[1742083250700,1.03207,1937.8,1937.7,4.25879]
[1742083250897,3.15317,1937.8,1937.7,4.25879]
[1742083251207,2.1211,1937.8,1937.7,4.23989]
[1742083251915,3.15317,1937.8,1937.7,4.23989]
[1742083252305,2.1211,1937.8,1937.7,4.23989]
[1742083253911,2.1211,1937.8,1937.7,5.60769]
[1742083260313,3.15317,1937.8,1937.7,5.60769]
[1742083260520,2.1211,1937.8,1937.7,5.60769]
[1742083260717,3.15317,1937.8,1937.7,5.60769]
[1742083260920,3.15317,1937.8,1937.7,4.23989]
[1742083261622,1.03218,1937.6,1937.5,4.5597]
[1742083261920,1.03218,1937.6,1937.5,3.2078]
[1742083262423,2.39188,1937.6,1937.5,3.2078]
[1742083262618,1.3597,1937.6,1937.5,4.24001]
[1742083263320,4.6317,1937.6,1937.4,1.3519]
[1742083263522,5.66391,1937.6,1937.5,1.03223]
[1742083263716,4.30421,1937.6,1937.5,1.03223]
[1742083264017,4.30421,1937.6,1937.4,1.3519]
[1742083264018,3.272,1937.6,1937.4,1.3519]
[1742083264222,4.3042,1937.6,1937.5,1.03223]
[1742083264918,4.30422,1937.6,1937.5,1.03223]
[1742083265122,4.30418,1937.6,1937.5,1.03223]
[1742083265622,3.272,1937.6,1937.5,1.03223]
[1742083267526,6.4788,1937.7,1937.6,1.03218]
[1742083267918,7.51093,1937.7,1937.6,1.03218]
[1742083268424,4.30313,1937.7,1937.6,1.03218]
[1742083268622,4.30313,1937.7,1937.5,2.45489]
[1742083268623,1.03218,1937.6,1937.5,2.45489]
[1742083268823,1.03218,1937.6,1937.5,1.03219]
[1742083269214,4.30317,1937.7,1937.6,1.03218]
[1742083269926,3.271,1937.7,1937.6,1.03218]
[1742083272829,3.271,1937.7,1937.6,2.36698]
[1742083273035,3.271,1937.7,1937.6,3.80888]
[1742083274734,3.27,1937.9,1937.6,5.35714]
[1742083274933,3.27,1937.9,1937.8,1.03207]
[1742083275233,4.30202,1937.9,1937.8,1.03207]
[1742083276219,3.27,1937.9,1937.8,1.03207]
[1742083278433,3.9911,1937.9,1937.8,1.03207]
[1742083279333,0.7211,1937.9,1937.8,1.03207]
[1742083279534,0.99049855,1938.0,1937.9,1.03202]
[1742083279731,3.272,1938.1,1938.0,1.03197]
[1742083279936,3.272,1938.1,1938.0,2.38867]
[1742083280630,0.99049855,1938.2,1938.1,1.03191]
[1742083280829,0.99049855,1938.2,1938.1,2.38861]
[1742083281030,6.5088619,1938.3,1938.2,1.03186]
[1742083281230,6.5088619,1938.3,1938.2,2.38856]
[1742083281626,5.7891619,1938.3,1938.2,2.38856]
[1742083281835,0.99049855,1938.3,1938.2,2.38856]
[1742083282136,4.5923,1938.5,1938.4,1.03175]
[1742083282137,3.2078,1938.5,1938.4,1.03175]
[1742083282531,0.00773674,1938.6,1938.5,1.0317]
[1742083283639,1.34143674,1938.6,1938.5,1.0317]
[1742083283830,1.34143674,1938.6,1938.4,1.4455]
[1742083284030,2.37310674,1938.6,1938.5,1.0317]
[1742083284241,2.37310674,1938.6,1938.4,1.4455]
[1742083284242,1.73532,1938.5,1938.4,1.03175]
[1742083284538,3.06902,1938.5,1938.4,1.03175]
[1742083285032,3.06902,1938.5,1938.2,1.4455]
[1742083285339,3.03865,1938.4,1938.3,1.03181]
[1742083285640,2.0069,1938.4,1938.0,3.2078]
[1742083285942,1.3098,1938.3,1938.2,1.03183]
[1742083287438,2.34161,1938.3,1938.2,1.03183]
[1742083288338,1.3098,1938.3,1938.2,1.03183]
[1742083288943,2.34161,1938.3,1938.1,1.3892]
[1742083289136,1.69586,1938.2,1938.0,3.2078]
[1742083289336,0.7041,1938.1,1938.0,4.23977]
[1742083289641,2.0703,1938.1,1938.0,5.67667]
[1742083303562,1.3662,1938.1,1938.0,5.67667]
[1742083303763,2.37505802,1938.4,1938.3,1.03181]
[1742083304064,0.99205802,1938.4,1938.3,1.03181]
[1742083304264,4.66533674,1938.6,1938.4,1.03175]
[1742083304265,1.3118,1938.5,1938.4,1.03175]
[1742083304456,1.31953674,1938.6,1938.5,1.7207]
[1742083304657,0.00773674,1938.6,1938.5,3.7465]
[1742083307954,1.40883674,1938.6,1938.5,2.3448]
[1742083308156,1.40883674,1938.6,1938.5,1.0317]
[1742083310071,2.44048674,1938.6,1938.5,1.0317]
[1742083310369,5.72152674,1938.6,1938.5,1.0317]
[1742083310571,8.92932674,1938.6,1938.5,1.0317]
[1742083310972,9.92136476,1938.6,1938.5,1.0317]
[1742083311360,9.75017816,1938.6,1938.1,1.4102]
[1742083311568,1.03177,1938.4,1938.3,1.03178]
[1742083311965,3.10387,1938.4,1938.3,1.03178]
[1742083313569,1.03181,1938.3,1938.2,1.03183]
[1742083313876,1.3417,1938.3,1938.2,1.03183]
[1742083316276,2.37351,1938.3,1938.2,1.03183]
[1742083316480,1.3417,1938.3,1938.2,1.03183]
[1742083320679,2.37351,1938.3,1938.2,1.03183]
[1742083320980,1.03186,1938.2,1938.1,1.03188]
[1742083321181,1.5632834,1938.4,1938.0,4.6551]
[1742083321380,1.03188,1938.2,1938.1,1.03188]
[1742083322580,3.276,1938.3,1938.0,1.03195]
[1742083322581,1.03191,1938.1,1938.0,1.03195]
[1742083322774,1.03191,1938.1,1937.9,1.03198]
[1742083322775,1.03197,1938.0,1937.9,1.03198]
[1742083322975,1.03202,1937.9,1937.8,3.2078]
[1742083323180,1.03202,1937.9,1937.5,1.03222]
[1742083323181,1.03217,1937.7,1937.5,1.03222]
[1742083323479,1.03217,1937.7,1937.4,0.6642]
[1742083323480,1.03223,1937.5,1937.4,1.03226]
[1742083323788,1.03223,1937.5,1937.4,1.03229]
[1742083324079,1.03223,1937.5,1937.3,3.2078]
[1742083324288,1.03229,1937.4,1937.3,3.2078]
[1742083324679,4.32134,1937.4,1937.2,1.03236]
[1742083324882,1.03234,1937.3,1937.2,1.03236]
[1742083325182,4.3213,1937.4,1937.2,1.03236]
[1742083325383,1.03234,1937.3,1937.2,1.03236]
[1742083325581,4.32131,1937.4,1937.2,1.03236]
[1742083325883,3.289,1937.4,1937.3,1.03234]
[1742083326988,3.289,1937.4,1937.3,2.40564]
[1742083327486,3.289,1937.4,1937.3,1.03234]
[1742083327886,0.72643674,1937.6,1937.5,1.03223]
[1742083328185,4.01843674,1937.6,1937.5,1.03223]
[1742083330086,5.05061674,1937.6,1937.5,1.03223]
[1742083330391,4.01843674,1937.6,1937.5,1.03223]
[1742083332189,4.01843674,1937.6,1937.4,1.3244]
[1742083332190,6.47481674,1937.6,1937.4,1.03225]
[1742083332494,6.47481674,1937.6,1937.3,0.7019]
[1742083332495,1.0323,1937.4,1937.3,1.03232]
[1742083333179,2.4565,1937.4,1937.2,1.03235]
[1742083333691,1.4242,1937.3,1937.2,1.03235]
[1742083333888,1.4242,1937.3,1936.9,6.47796]
[1742083333889,1.03239,1937.2,1936.9,0.6888]
[1742083334086,1.4242,1937.1,1937.0,2.43025]
[1742083334486,3.294,1937.3,1937.2,1.03239]
[1742083334983,1.4376,1937.4,1937.1,4.5891]
[1742083335185,1.4376,1937.4,1937.3,1.03234]
[1742083335689,1.4376,1937.4,1937.3,2.41364]
[1742083335884,1.4376,1937.4,1937.3,5.62144]
[1742083336085,1.4376,1937.4,1937.3,3.08464]
[1742083336287,1.4376,1937.4,1937.3,2.41364]
[1742083338294,1.4376,1937.4,1937.3,5.62144]
[1742083338998,2.46989,1937.4,1937.3,5.62144]
[1742083339201,1.4376,1937.4,1937.3,5.62144]
[1742083339995,2.46989,1937.4,1937.3,5.62144]
[1742083340195,2.1369,1937.4,1937.3,5.62144]
[1742083340395,2.1369,1937.4,1937.0,5.78902]
[1742083340601,4.6717,1937.3,1937.0,5.78902]
[1742083340796,4.6717,1937.3,1937.1,1.03245]
[1742083340797,1.3727,1937.2,1937.1,1.03245]
[1742083342798,1.3727,1937.2,1937.1,2.46905]
[1742083343301,0.7061,1937.5,1937.4,1.03229]
[1742083343502,2.1558,1937.5,1937.4,1.03229]
[1742083343891,0.00773674,1937.6,1937.5,1.03223]
[1742083345401,0.00773674,1937.6,1937.5,4.24003]
[1742083346696,0.00773674,1937.6,1937.5,1.03223]
[1742083347001,0.00773674,1937.6,1937.5,4.24003]
[1742083349002,0.00773674,1937.6,1937.5,1.03223]
[1742083350103,0.00773674,1937.6,1937.5,4.92403]
[1742083350304,0.00773674,1937.6,1937.5,1.71623]
[1742083351900,0.00773674,1937.6,1937.5,4.92403]
[1742083356407,0.00773674,1937.6,1937.5,4.24003]
[1742083356607,0.00773674,1937.6,1937.5,1.03223]
[1742083356906,1.40153674,1937.6,1937.5,1.03223]
[1742083357108,2.05613674,1937.6,1937.5,1.03223]
[1742083357703,3.08831674,1937.6,1937.5,1.03223]
[1742083358002,2.05613674,1937.6,1937.5,1.03223]
[1742083359608,3.08831674,1937.6,1937.5,1.03223]
[1742083360403,3.08831674,1937.6,1937.3,3.2078]
[1742083360615,2.45816,1937.5,1937.4,1.03229]
[1742083361302,5.66597,1937.5,1937.4,1.03229]
[1742083362006,2.45817,1937.5,1937.4,1.03229]
[1742083362803,1.4259,1937.5,1937.4,1.03229]
[1742083363002,2.45813,1937.5,1937.4,1.03229]
[1742083363399,5.76213,1937.5,1937.4,1.03229]
[1742083363605,1.03232,1937.4,1937.3,1.03233]
[1742083363802,3.05772,1937.4,1937.3,1.03233]
[1742083364203,2.0254,1937.4,1937.3,1.03233]
[1742083365911,3.05769,1937.4,1937.3,1.03233]
[1742083366506,1.03234,1937.3,1937.2,1.03235]
[1742083366715,1.3116,1937.3,1937.2,1.03235]
[1742083372017,4.95641915,1937.6,1937.2,3.2078]
[1742083372326,2.0176,1937.5,1937.4,1.03226]
[1742083373021,1.3256,1937.5,1937.4,2.41176]
[1742083373220,1.3256,1937.5,1937.4,5.61956]
[1742083373421,1.3256,1937.5,1937.4,6.32366]
[1742083374110,0.00773674,1937.6,1937.5,1.03223]
[1742083374322,0.00773674,1937.6,1937.5,2.38003]
[1742083380623,1.40213674,1937.6,1937.5,2.38003]
[1742083383223,0.00773674,1937.6,1937.5,2.38003]
[1742083384637,0.7079,1938.0,1937.9,1.03202]
[1742083386129,2.0461,1938.0,1937.9,3.17812]
[1742083387837,2.0461,1938.0,1937.9,2.46122]
[1742083388035,2.0461,1938.0,1937.9,1.03202]
[1742083388238,1.03202,1937.9,1937.8,1.03977674]
[1742083388439,2.37022,1937.9,1937.8,1.03977674]
[1742083388630,5.69822,1937.9,1937.8,1.03977674]
[1742083389135,5.69822,1937.9,1937.8,0.00773674]
[1742083390241,5.69822,1937.9,1937.6,1.03216]
[1742083390242,1.03213,1937.7,1937.6,1.03216]
[1742083390939,3.01033,1937.7,1937.6,1.03216]
[1742083392237,1.03219,1937.6,1937.5,1.03221]
[1742083392434,2.99789,1937.6,1937.5,1.03221]
[1742083393531,6.32389,1937.6,1937.5,1.03221]
[1742083393836,1.03223,1937.5,1937.4,1.03225]
[1742083394037,2.33863,1937.5,1937.4,1.03225]
[1742083394333,2.33863,1937.5,1937.0,3.95089]
[1742083394334,1.3064,1937.5,1937.0,3.95089]
[1742083394536,1.3064,1937.4,1937.3,1.03234]
[1742083395539,1.3064,1937.4,1937.3,4.24014]
[1742083396438,1.3064,1937.4,1937.3,4.92644]
[1742083401738,0.99208241,1937.8,1937.4,2.58072]
[1742083402039,6.5438,1938.5,1938.0,1.03197]
[1742083402241,2.57898,1938.8,1938.6,1.03165]
[1742083402242,6.5438,1938.7,1938.6,1.03165]
[1742083402544,3.9187,1938.7,1938.6,1.03165]
[1742083402935,3.2078,1938.7,1938.6,1.03165]
[1742083403137,31.8358,1938.9,1938.8,1.03154]
[1742083403337,1.376,1939.0,1938.9,1.03149]
[1742083403537,0.00773674,1939.0,1938.9,1.03149]
[1742083403744,0.00773674,1939.0,1938.9,4.23929]
[1742083404343,6.74e-06,1939.0,1938.9,6.73929]
[1742083404543,6.74e-06,1939.0,1938.9,17.98459]
[1742083411150,3.98479,1939.9,1939.8,1.03101]
[1742083411337,3.98479,1939.9,1939.8,7.58881]
[1742083411541,1.3437,1940.2,1940.1,1.03085]
[1742083412040,1.03088,1940.1,1939.9,1.03093]
[1742083412349,1.3437,1940.0,1939.9,1.03093]
[1742083413852,1.03096,1939.9,1939.8,1.03870674]
[1742083414049,4.38896,1939.9,1939.8,0.00773674]
[1742083414449,5.82056,1939.9,1939.8,0.00773674]
[1742083414648,5.82056,1939.9,1939.8,1.03874674]
[1742083414952,4.7896,1939.9,1939.8,1.03874674]
[1742083416456,1.4316,1939.9,1939.8,1.03874674]
[1742083418756,1.4316,1939.9,1939.8,4.24654674]
[1742083419253,4.79703674,1940.3,1940.2,1.0308]
[1742083420560,6.10763674,1940.3,1940.2,1.0308]
[1742083420856,7.13838674,1940.3,1939.9,1.3227]
[1742083421058,6.10763674,1940.3,1940.2,1.0308]
[1742083422560,7.13837674,1940.3,1940.2,1.0308]
[1742083422862,6.10763674,1940.3,1940.2,1.0308]
[1742083423056,1.0308,1940.2,1940.1,1.03081]
[1742083423354,2.46354,1940.2,1940.1,1.03085]
[1742083423563,1.03085,1940.1,1939.8,4.24654674]
[1742083423861,1.4327,1940.0,1939.9,1.03096]
[1742083434268,1.03096,1939.9,1939.8,0.00773674]
[1742083434465,1.03096,1939.9,1939.7,1.03101]
[1742083434666,2.031,1939.8,1939.7,1.03101]
[1742083434973,3.06201,1939.8,1939.7,1.03101]
[1742083435164,2.031,1939.8,1939.7,1.03101]
[1742083435575,3.06201,1939.8,1939.7,1.03101]
[1742083435763,2.031,1939.8,1939.7,1.03101]
[1742083437775,2.7191,1939.8,1939.7,1.03101]
[1742083440067,3.75011,1939.8,1939.7,1.03101]
[1742083441878,3.75011,1939.8,1939.7,1.03101]
[1742083443380,3.75014,1939.8,1939.7,1.03106]
[1742083444073,1.03106,1939.7,1939.6,1.03882674]
[1742083444275,2.42706,1939.7,1939.6,0.00773674]
[1742083444482,6.47374,1939.7,1939.2,1.3212]
[1742083444671,1.03131,1939.3,1939.2,1.03131]
[1742083445083,1.03133,1939.2,1939.1,1.03134]
[1742083445284,0.6725,1939.2,1939.1,1.03134]
[1742083445781,2.0685,1939.2,1939.1,1.03134]
[1742083447383,3.09983,1939.2,1939.1,1.03134]
[1742083447977,2.0685,1939.2,1939.1,1.03134]
[1742083449176,3.09983,1939.2,1939.1,1.03134]
[1742083450085,3.09985,1939.2,1939.1,1.03138]
[1742083450803,1.03139,1939.1,1939.0,1.03139]
[1742083451012,2.34439,1939.1,1939.0,1.03139]
[1742083451811,2.34438,1939.1,1939.0,1.03139]
[1742083452506,1.313,1939.1,1939.0,2.34159]
[1742083453502,2.34438,1939.1,1939.0,2.34159]
[1742083453701,1.313,1939.1,1939.0,2.34159]
[1742083454602,2.34438,1939.1,1939.0,2.34159]
[1742083455004,1.313,1939.1,1939.0,2.34159]
[1742083456111,0.00773674,1939.2,1939.1,1.03138]
[1742083456311,0.00773674,1939.2,1939.1,6.31668]
[1742083458413,0.00773674,1939.2,1939.1,2.40938]
[1742083458821,1.40613674,1939.2,1939.1,2.40938]
[1742083464096,1.40613674,1939.2,1939.1,1.03138]
[1742083464500,2.08223674,1939.2,1939.1,1.03138]
[1742083470504,2.08223674,1939.2,1939.1,2.37058]
[1742083471204,2.08223674,1939.2,1939.1,5.57838]
[1742083471401,0.00773674,1939.2,1939.1,5.57838]
[1742083471606,0.00773674,1939.2,1939.1,6.29908]
[1742083472694,1.67050072,1939.7,1939.4,2.56297]
[1742083472899,1.3388,1939.6,1939.5,2.45537]
[1742083481309,1.3388,1939.6,1939.5,1.03117]
[1742083482212,1.03117,1939.5,1939.4,1.03119]
[1742083482611,1.03125,1939.4,1939.3,1.03126]
[1742083482812,1.68485,1939.4,1939.3,1.03126]
[1742083483911,0.6536,1939.4,1939.3,1.03126]
[1742083484813,1.68482,1939.4,1939.3,1.03126]
[1742083485314,0.6536,1939.4,1939.3,1.03126]
[1742083485814,2.0323,1939.4,1939.3,1.03126]
[1742083486807,3.06352,1939.4,1939.3,1.03126]
[1742083487615,2.0323,1939.4,1939.3,1.03126]
[1742083489806,3.06352,1939.4,1939.3,1.03126]
[1742083490406,2.0323,1939.4,1939.3,1.03126]
[1742083492029,3.06352,1939.4,1939.3,1.03126]
[1742083494823,1.0313,1939.3,1939.2,1.03129]
[1742083495117,3.1607,1939.3,1939.2,1.03129]
[1742083495430,1.4354,1939.3,1939.2,1.03129]
[1742083495610,2.106,1939.3,1939.2,1.03129]
[1742083498711,1.4354,1939.3,1939.2,1.03129]
[1742083498915,1.4354,1939.3,1939.2,4.23909]
[1742083499316,1.4354,1939.3,1939.2,4.90359]
[1742083499519,0.83,1939.4,1939.3,1.03127]
[1742083499725,0.83,1939.4,1939.3,3.11147]
[1742083503227,0.83,1939.4,1939.3,2.42997]
[1742083503421,0.83,1939.4,1939.3,1.03127]
[1742083503620,0.83,1939.4,1939.3,2.43807]
[1742083503621,2.2016,1939.4,1939.3,2.43807]
[1742083504325,2.2016,1939.4,1939.3,1.03127]
[1742083504326,3.23282,1939.4,1939.3,1.03127]
[1742083504526,2.2016,1939.4,1939.3,1.03127]
[1742083504918,1.03127,1939.3,1939.2,1.03128]
[1742083505115,2.37057,1939.3,1939.2,1.03128]
[1742083505718,1.03133,1939.2,1939.1,1.03134]
[1742083505916,1.03138,1939.1,1939.0,3.21553674]
[1742083506129,0.7233,1939.1,1939.0,4.24696674]
[1742083506331,2.0626,1939.1,1939.0,4.24696674]
[1742083508425,1.3393,1939.1,1939.0,4.24696674]
[1742083512762,1.3393,1939.1,1939.0,5.67956674]
[1742083517549,2.66158431,1939.4,1939.3,1.03127]
[1742083517743,3.14896558,1939.4,1939.3,1.03127]
[1742083518045,2.1779,1939.4,1939.3,1.03127]
[1742083518235,2.1779,1939.4,1939.3,2.35877]
[1742083519035,2.1779,1939.4,1939.3,1.03127]
[1742083519338,2.1779,1939.4,1939.0,3.21553674]
[1742083519642,1.03138,1939.1,1939.0,3.21553674]
[1742083520135,1.03138,1939.1,1939.0,4.24696674]
[1742083520340,1.3388,1939.1,1939.0,4.24696674]
[1742083520534,2.37018,1939.1,1939.0,4.24696674]
[1742083521140,2.37018,1939.1,1939.0,3.21553674]
[1742083521743,2.37018,1939.1,1939.0,4.24696674]
[1742083523434,2.37018,1939.1,1939.0,3.21553674]
[1742083523828,4.63178,1939.1,1939.0,3.21553674]
[1742083524641,4.63178,1939.1,1939.0,4.24696674]
[1742083526038,3.6004,1939.1,1939.0,4.24696674]
[1742083527440,4.4306,1939.1,1939.0,4.24696674]
[1742083531157,4.4306,1939.1,1939.0,1.03916674]
[1742083537953,5.46198,1939.1,1939.0,1.03916674]
[1742083538856,5.46198,1939.1,1939.0,0.00773674]
[1742083539863,5.46198,1939.1,1939.0,1.03916674]
[1742083540664,6.43308657,1939.1,1939.0,1.03916674]
[1742083541464,5.40170657,1939.1,1939.0,1.03916674]
[1742083542562,6.43308657,1939.1,1939.0,1.03916674]
[1742083546972,5.40170657,1939.1,1939.0,1.03916674]
[1742083547667,4.4306,1939.1,1939.0,2.37666674]
[1742083549559,4.4306,1939.1,1939.0,1.03916674]
[1742083551867,4.4306,1939.1,1939.0,1.71686674]
[1742083555980,4.4306,1939.1,1939.0,4.92466674]
[1742083560371,4.4306,1939.1,1939.0,6.34016674]
[1742083560571,4.4306,1939.1,1939.0,4.24696674]
[1742083560777,5.46198,1939.1,1939.0,0.00773674]
[1742083560972,6.9306,1939.1,1938.5,3.2078]
[1742083561182,1.03157,1938.8,1938.6,1.03162]
[1742083561384,2.0085,1938.7,1938.6,1.03162]
[1742083561981,2.0085,1938.7,1938.4,1.4155]
[1742083562177,1.3104,1938.6,1938.5,1.0317]
[1742083562386,2.34207,1938.6,1938.4,1.03172]
[1742083562890,1.3359,1938.5,1938.4,1.03172]
[1742083563392,2.36762,1938.5,1938.3,1.03177]
[1742083563686,2.36764,1938.5,1938.3,1.03178]
[1742083563986,1.3359,1938.4,1938.3,1.03178]
[1742083564187,3.07625,1938.4,1938.3,0.98736308]
[1742083564389,2.0445,1938.4,1938.3,0.98736308]
[1742083564575,2.0445,1938.4,1938.3,1.03181]
[1742083565881,3.07625,1938.4,1938.3,1.03181]
[1742083566083,3.07625,1938.4,1938.2,3.2078]
[1742083566285,2.0048,1938.3,1938.2,4.23963]
[1742083571087,1.03188,1938.2,1938.1,1.0319]
[1742083571291,2.46958,1938.2,1938.1,1.0319]
[1742083571793,3.30038,1938.2,1938.1,1.0319]
[1742083573295,3.30038,1938.2,1938.0,1.03197]
[1742083573491,1.3698,1938.1,1938.0,1.03197]
[1742083575103,1.3698,1938.1,1937.9,4.5165]
[1742083575104,1.03197,1938.0,1937.9,4.23979]
[1742083575298,1.69027,1938.0,1937.9,4.23979]
[1742083576099,0.6583,1938.0,1937.9,4.23979]
[1742083576496,3.00837,1938.0,1937.9,4.23979]
[1742083579793,1.9764,1938.0,1937.9,4.23979]
[1742083579994,1.9764,1938.0,1937.9,1.03199]
[1742083580697,1.9764,1938.0,1937.8,1.03204]
[1742083580901,1.9894,1937.9,1937.8,1.03204]
[1742083581101,3.02145,1937.9,1937.8,1.03204]
[1742083582095,1.9894,1937.9,1937.8,1.03204]
[1742083582600,1.9894,1937.9,1937.8,2.41214]
[1742083582900,3.02142,1937.9,1937.8,2.41214]
[1742083583300,3.02142,1937.9,1937.8,1.03204]
[1742083583502,1.9894,1937.9,1937.8,1.03204]
[1742083584302,3.02142,1937.9,1937.8,1.03204]
[1742083584504,1.9894,1937.9,1937.8,1.03204]
[1742083584802,1.9894,1937.9,1937.8,2.45264]
[1742083585200,1.3111,1937.9,1937.8,2.45264]
[1742083585701,1.3111,1937.9,1937.8,3.13364]
[1742083590303,1.3111,1937.9,1937.8,2.45264]
[1742083591106,1.03207,1937.8,1937.7,4.23988]
[1742083591402,1.68997,1937.8,1937.7,4.23988]
[1742083593608,1.03222,1937.6,1937.4,13.81313]
[1742083593802,1.03222,1937.6,1937.5,1.03221]
[1742083594202,1.03223,1937.5,1937.4,0.01953]
[1742083595803,6.52253674,1937.7,1937.4,0.01953]
[1742083596004,1.03223,1937.5,1937.4,1.05177]
[1742083596509,1.03223,1937.5,1937.4,1.03224]
[1742083596906,2.9096,1937.6,1937.5,1.03223]
[1742083597808,2.9096,1937.6,1937.5,2.44113]
[1742083598209,3.7408,1937.6,1937.5,2.44113]
[1742083609320,3.7408,1937.6,1937.5,1.03223]
[1742083609716,4.4583,1937.6,1937.5,1.03223]
[1742083610819,5.49048,1937.6,1937.5,1.03223]
[1742083611018,1.03223,1937.5,1937.4,4.24004]
[1742083612023,1.03223,1937.5,1937.4,1.03224]
[1742083612223,2.37583,1937.5,1937.4,1.03224]
[1742083613024,1.03232,1937.4,1937.3,1.03232]
[1742083613228,2.37592,1937.4,1937.3,1.03232]
[1742083613426,1.3436,1937.4,1937.1,1.4178]
[1742083613726,1.3436,1937.4,1937.0,3.2078]
[1742083613727,3.70168,1937.3,1937.2,1.03239]
[1742083614121,4.53308,1937.3,1937.2,1.03239]
[1742083614529,4.53306,1937.3,1937.2,1.03239]
[1742083615926,1.03242,1937.2,1937.1,1.03242]
[1742083616129,1.03245,1937.1,1937.0,1.03245]
[1742083616324,2.45823,1937.2,1937.1,1.03245]
[1742083616730,2.45823,1937.2,1936.9,1.41598]
[1742083616731,1.03246,1937.1,1937.0,1.03246]
[1742083617024,2.45826,1937.1,1937.0,1.03246]
[1742083617438,1.4258,1937.1,1937.0,1.03246]
[1742083617918,1.0325,1937.0,1936.9,0.02058]
[1742083618121,4.9248,1937.0,1936.9,0.02058]
[1742083618421,1.03266,1936.7,1936.6,4.2405]
[1742083619018,1.3659,1936.7,1936.6,4.2405]
[1742083619218,1.3659,1936.7,1936.4,3.2078]
[1742083619422,1.71724,1936.6,1936.5,1.03273]
[1742083619632,0.6845,1936.6,1936.5,1.03273]
[1742083620033,2.0504,1936.6,1936.5,1.03273]
[1742083620229,3.08311,1936.6,1936.5,1.03273]
[1742083620429,1.03277,1936.5,1936.4,3.2078]
[1742083620734,5.72627,1936.5,1936.4,3.2078]
[1742083621032,5.72627,1936.5,1936.4,4.24062]
[1742083621232,5.72627,1936.5,1936.4,3.2078]
[1742083621631,5.3468,1936.5,1936.4,4.24062]
[1742083621831,6.37957,1936.5,1936.4,4.24062]
[1742083622232,6.37957,1936.5,1936.1,3.2078]
[1742083622432,1.3795,1936.4,1936.1,3.2078]
[1742083622638,1.3795,1936.4,1936.3,1.03287]
[1742083623229,2.41237,1936.4,1936.2,2.4281]
[1742083623626,2.35337,1936.3,1936.2,2.4281]